bitfinex/quotes_ETHUSD_20250511
["timestamp","ask_amount","ask_price","bid_price","bid_amount"]
[1746962573036,0.8158,2513.8,2513.0,1.14928]
[1746962573620,0.8158,2513.8,2512.2,2.90682637]
[1746962573621,0.55,2513.3,2512.1,0.779]
[1746962573922,0.8158,2513.0,2512.1,0.779]
[1746962574225,0.34246285,2512.9,2512.2,0.03980316]
[1746962574398,0.34246285,2512.9,2512.3,0.779]
[1746962574597,0.34246285,2512.9,2512.4,2.64279825]
[1746962574798,0.34246285,2512.9,2512.5,0.34217983]
[1746962576792,0.34246285,2512.9,2512.4,2.603]
[1746962577003,3.4188,2513.2,2512.4,2.603]
[1746962577217,0.34106471,2512.8,2512.4,2.603]
[1746962577421,0.8158,2512.8,2512.4,2.603]
[1746962577604,0.34106471,2512.7,2512.4,2.603]
[1746962578015,0.8158,2512.8,2512.4,2.603]
[1746962578310,0.34106471,2512.7,2512.4,2.603]
[1746962578515,0.8158,2512.8,2512.4,2.603]
[1746962578730,0.34106471,2512.6,2512.4,2.603]
[1746962578886,0.8158,2512.8,2512.4,2.603]
[1746962579087,0.34106471,2512.5,2512.4,2.603]
[1746962579293,0.8158,2512.8,2512.4,2.603]
[1746962579533,0.34106471,2512.5,2512.4,2.603]
[1746962579730,0.8158,2512.8,2512.4,2.603]
[1746962579934,0.34106471,2512.7,2512.4,2.603]
[1746962580135,0.7901,2512.5,2511.6,0.7532]
[1746962580341,2.94406471,2512.4,2511.6,3.3572]
[1746962580644,0.7901,2512.3,2511.6,2.604]
[1746962580927,0.33876676,2512.2,2511.6,2.604]
[1746962581230,0.7901,2512.3,2511.6,2.604]
[1746962581433,1.12941,2512.3,2511.6,2.604]
[1746962581726,0.33876676,2512.2,2511.6,2.604]
[1746962582534,0.7901,2512.1,2511.1,14.314]
[1746962582727,0.332072,2512.0,2511.1,14.314]
[1746962583028,0.7802,2511.9,2511.1,14.314]
[1746962583193,2.603,2511.8,2511.1,14.314]
[1746962583387,2.93500535,2511.8,2511.1,14.314]
[1746962584194,2.93500535,2511.8,2511.2,0.0398158]
[1746962584706,0.33200535,2511.8,2511.2,0.0398158]
[1746962584905,0.33200535,2511.8,2511.1,14.314]
[1746962585121,3.3832,2511.9,2511.1,14.314]
[1746962585338,0.33097215,2511.8,2511.1,14.314]
[1746962586215,0.33097215,2511.8,2511.2,0.03981706]
[1746962586912,0.33097215,2511.8,2511.3,0.755]
[1746962587116,3.4085,2512.1,2511.3,0.755]
[1746962587117,3.4085,2512.1,2511.4,0.03981099]
[1746962587302,0.33097215,2512.0,2511.3,0.755]
[1746962587507,0.33097215,2512.0,2511.4,0.03981088]
[1746962588233,0.33097215,2512.0,2511.6,0.55]
[1746962588440,0.33097215,2512.0,2511.4,0.03981088]
[1746962588441,0.33097215,2512.0,2511.7,3.3998027]
[1746962588625,0.8055,2512.6,2511.8,0.33998027]
[1746962589000,0.33097215,2512.5,2511.9,0.03980249]
[1746962589228,0.33097215,2512.5,2511.8,0.33998027]
[1746962590243,0.63541219,2512.5,2511.8,0.33998027]
[1746962593816,0.33097215,2512.5,2511.9,0.03980519]
[1746962594017,0.33097215,2512.5,2511.8,0.33998027]
[1746962595452,0.8055,2512.4,2511.8,0.33998027]
[1746962595829,0.33197173,2512.3,2511.8,0.33998027]
[1746962596214,0.33197173,2512.3,2511.7,2.605]
[1746962596551,0.8055,2512.2,2511.7,2.605]
[1746962596943,0.33197173,2512.1,2511.7,2.605]
[1746962597439,0.8055,2512.0,2511.7,2.605]
[1746962598119,0.33197173,2511.9,2511.7,2.605]
[1746962599050,8.33197173,2511.9,2511.2,3.36]
[1746962599256,0.808,2511.8,2511.2,2.605]
[1746962599450,0.808,2511.8,2511.3,0.0398182]
[1746962599945,0.33197173,2511.7,2511.3,0.0398182]
[1746962600334,0.808,2511.8,2511.3,0.0398182]
[1746962600554,0.33197173,2511.7,2511.3,0.0398182]
[1746962600855,0.808,2511.8,2511.3,0.0398182]
[1746962601054,0.33197173,2511.6,2511.3,0.0398182]
[1746962601245,0.808,2511.8,2511.3,0.0398182]
[1746962601555,0.808,2511.8,2511.2,2.605]
[1746962601755,0.33197173,2511.7,2511.2,2.605]
[1746962605763,0.33197173,2511.7,2511.3,0.03981568]
[1746962605950,0.808,2511.8,2511.3,0.03981568]
[1746962606126,0.33053888,2511.7,2511.3,0.03981568]
[1746962606329,0.808,2511.8,2511.3,0.03981568]
[1746962606558,0.33053888,2511.7,2511.3,0.03981568]
[1746962606858,0.808,2511.8,2511.3,0.03981568]
[1746962607057,0.33060554,2511.6,2511.3,0.03981568]
[1746962607563,0.33060554,2511.6,2511.2,2.605]
[1746962607927,0.808,2511.8,2511.2,2.605]
[1746962608128,0.33057238,2511.7,2511.2,2.605]
[1746962608566,0.33057238,2511.7,2511.3,0.82311563]
[1746962608726,0.808,2511.8,2511.3,0.82311563]
[1746962608928,0.33057238,2511.7,2511.3,0.82311563]
[1746962609189,0.808,2511.8,2511.3,0.82311563]
[1746962609363,0.33057238,2511.7,2511.3,0.82311563]
[1746962609531,0.808,2511.8,2511.3,0.82311563]
[1746962609731,0.33057238,2511.7,2511.4,0.55]
[1746962609930,0.7724,2512.2,2511.5,0.7833]
[1746962610133,0.32393938,2512.1,2511.5,0.7833]
[1746962611631,0.7724,2512.2,2511.5,0.7833]
[1746962611831,0.7724,2512.4,2511.5,0.7833]
[1746962613183,1.10974,2512.4,2511.6,0.03980724]
[1746962613350,0.32393938,2512.3,2511.6,0.03980724]
[1746962613550,1.10974,2512.4,2511.6,0.03980724]
[1746962613751,0.32393938,2512.3,2511.5,0.7833]
[1746962613961,0.7712,2512.2,2511.2,2.602]
[1746962614248,0.7712,2512.0,2511.2,2.602]
[1746962614568,3.69703992,2511.9,2511.2,2.602]
[1746962614891,0.36970399,2511.8,2511.2,2.602]
[1746962615069,0.7712,2511.7,2511.2,2.602]
[1746962615282,1.09577311,2511.7,2511.2,2.602]
[1746962615480,0.7712,2511.7,2511.2,2.602]
[1746962621273,0.32337228,2511.6,2511.2,2.602]
[1746962625509,0.7975,2511.5,2510.5,14.325]
[1746962625802,0.32297194,2511.4,2510.6,2.602]
[1746962625985,0.7975,2511.2,2510.6,2.6418296]
[1746962626296,0.7975,2511.2,2510.6,3.4738296]
[1746962626481,0.7975,2511.2,2510.6,3.434]
[1746962626685,0.32297194,2511.1,2510.6,3.47382674]
[1746962627395,0.32297194,2511.1,2510.6,3.434]
[1746962627899,0.32297194,2511.1,2510.6,2.602]
[1746962628131,0.789,2511.0,2510.6,2.602]
[1746962628335,0.32297194,2510.9,2510.6,2.602]
[1746962628497,0.789,2511.0,2510.6,2.602]
[1746962628691,0.32297194,2510.9,2510.6,2.602]
[1746962628894,1.09093509,2511.0,2510.6,2.602]
[1746962629329,0.32297194,2510.9,2510.6,2.602]
[1746962629531,1.09093509,2511.0,2510.6,2.602]
[1746962629728,0.32297194,2510.9,2510.6,2.602]
[1746962629908,1.09093509,2511.0,2510.6,2.602]
[1746962630229,0.32297194,2510.9,2510.6,2.602]
[1746962630530,0.789,2511.0,2510.6,2.64182955]
[1746962630734,0.32297194,2510.9,2510.6,2.64182955]
[1746962631040,0.789,2511.0,2510.6,2.64182955]
[1746962631235,0.32297194,2510.9,2510.6,2.64182955]
[1746962631440,1.09408484,2511.0,2510.6,2.602]
[1746962631754,0.32297194,2510.9,2510.6,2.602]
[1746962631940,1.09408484,2511.0,2510.6,2.602]
[1746962632308,0.32297194,2510.9,2510.6,2.602]
[1746962632799,1.09408484,2511.0,2510.6,2.602]
[1746962633009,0.32297194,2510.9,2510.6,2.602]
[1746962637546,0.8071,2510.8,2510.3,2.6]
[1746962638236,2.599,2510.7,2510.0,0.039836]
[1746962638438,0.66151311,2510.6,2509.9,0.7549]
[1746962638745,0.32090311,2510.6,2510.2,0.55]
[1746962638917,10.8571,2511.6,2510.5,0.7549]
[1746962639117,0.29095499,2511.5,2510.7,0.7549]
[1746962639316,0.29095499,2511.5,2510.8,0.03981922]
[1746962639543,0.29095499,2511.5,2510.9,0.7549]
[1746962640047,0.29095499,2511.5,2511.0,0.03982035]
[1746962640649,0.29095499,2511.5,2510.9,0.7549]
[1746962641247,0.29095499,2511.5,2510.9,1.41348438]
[1746962641456,0.29095499,2511.5,2510.9,0.7549]
[1746962642448,0.29095499,2511.5,2511.0,0.03982085]
[1746962642821,0.29095499,2511.5,2511.1,0.8231]
[1746962643051,0.29095499,2511.5,2511.2,2.63981771]
[1746962643257,0.8152,2511.9,2511.2,2.63981771]
[1746962643447,0.29306423,2511.4,2511.2,2.63981771]
[1746962643755,0.29306423,2511.3,2511.2,2.63981771]
[1746962643958,1.11430548,2511.9,2511.2,2.63981771]
[1746962644160,0.29574341,2511.8,2511.2,2.63981771]
[1746962650183,0.24574341,2511.8,2511.2,2.63981771]
[1746962650584,0.24574341,2511.8,2511.2,2.6]
[1746962650940,0.29161055,2511.8,2511.2,2.6]
[1746962651646,0.24161055,2511.8,2511.2,2.6]
[1746962652469,0.19161055,2511.8,2511.3,2.599]
[1746962652675,0.2798474,2511.8,2511.3,2.599]
[1746962653253,0.2298474,2511.8,2511.3,2.599]
[1746962653578,0.2298474,2511.8,2511.3,2.94121]
[1746962653962,0.1798474,2511.8,2511.3,2.94121]
[1746962654167,0.7735,2511.7,2511.2,2.599]
[1746962654891,0.7235,2511.7,2511.2,2.599]
[1746962655562,0.29910548,2511.9,2511.3,0.80772062]
[1746962655778,0.24602736,2511.6,2511.3,0.80772062]
[1746962655983,2.597,2511.9,2511.4,0.34067206]
[1746962656284,0.24602736,2511.5,2511.4,0.34067206]
[1746962656475,2.597,2511.9,2511.4,0.34067206]
[1746962656679,0.24602736,2511.5,2511.4,0.34067206]
[1746962657160,2.84108428,2511.9,2511.4,0.34067206]
[1746962657358,0.24602736,2511.8,2511.3,0.7679]
[1746962657590,0.19602736,2511.8,2511.3,0.7679]
[1746962658491,0.19602736,2511.8,2511.2,2.599]
[1746962659592,0.7735,2511.7,2511.2,2.599]
[1746962659786,1.0153607,2511.7,2511.2,2.599]
[1746962660372,1.9463052,2511.7,2511.2,2.599]
[1746962662664,1.0153607,2511.7,2511.2,2.599]
[1746962662983,0.7735,2511.7,2511.2,2.599]
[1746962667583,3.64818428,2511.9,2511.3,0.81761864]
[1746962667898,0.23638939,2511.6,2511.3,0.81761864]
[1746962668079,3.64818428,2511.9,2511.3,0.81761864]
[1746962668282,0.23638939,2511.5,2511.3,0.81761864]
[1746962668509,3.64818428,2511.9,2511.4,0.34166186]
[1746962668693,3.64818428,2511.9,2511.3,0.81761864]
[1746962669184,1.05218428,2511.9,2511.3,0.81761864]
[1746962670614,0.23580773,2511.8,2511.3,0.81761864]
[1746962673693,0.23580773,2511.8,2511.3,0.03981864]
[1746962673899,0.23580773,2511.8,2511.4,2.596]
[1746962675318,0.808,2511.7,2511.4,2.596]
[1746962675616,0.23577414,2511.6,2511.4,2.596]
[1746962678392,0.7564,2511.5,2510.8,2.596]
[1746962678621,2.595,2511.4,2510.8,2.596]
[1746962679094,0.23523663,2511.3,2510.8,2.596]
[1746962679294,0.23523663,2511.3,2510.8,2.93857]
[1746962679498,0.23523663,2511.3,2510.8,0.34257]
[1746962679704,0.23523663,2511.3,2510.9,2.596]
[1746962681232,0.23523663,2511.3,2511.0,0.03982265]
[1746962682224,0.7564,2511.7,2511.1,0.8297]
[1746962682423,0.7564,2511.7,2511.2,0.03981674]
[1746962684234,12.644,2511.8,2511.2,0.03981674]
[1746962684996,12.644,2511.8,2511.2,0.92676841]
[1746962685628,0.23426238,2511.7,2511.2,0.92676841]
[1746962686909,0.23426238,2511.7,2511.2,0.88695167]
[1746962688433,0.23426238,2511.7,2511.0,8.0]
[1746962688604,0.7743,2511.6,2511.0,8.0]
[1746962689843,0.7743,2511.6,2510.9,0.759]
[1746962690033,0.7743,2511.6,2511.0,2.596]
[1746962690940,0.23466554,2511.5,2511.0,2.596]
[1746962692206,0.23466554,2511.5,2511.0,2.97132048]
[1746962693346,0.23466554,2511.5,2511.0,2.63582048]
[1746962697346,0.23466554,2511.5,2511.0,2.596]
[1746962698108,0.23466554,2511.5,2511.1,2.593]
[1746962698850,0.7661,2511.4,2511.1,2.593]
[1746962699150,1.00063112,2511.4,2511.0,2.593]
[1746962700950,1.00063112,2511.4,2510.6,0.8281]
[1746962701151,1.00063112,2511.4,2510.8,2.593]
[1746962702354,1.00063112,2511.4,2510.8,2.93511]
[1746962702651,0.92650729,2511.4,2510.8,2.93511]
[1746962705758,0.7837,2511.3,2510.8,2.593]
[1746962705952,2.592,2511.2,2510.8,2.593]
[1746962706124,0.7837,2511.1,2510.8,2.593]
[1746962706660,0.2328847,2511.0,2510.8,2.593]
[1746962707647,0.59374317,2511.0,2510.3,15.0774]
[1746962707951,0.7591,2510.9,2510.3,14.327]
[1746962708262,0.23238062,2510.8,2510.3,14.327]
[1746962712657,0.23238062,2510.8,2510.4,0.81813143]
[1746962712861,0.23238062,2510.8,2510.4,8.81813143]
[1746962713066,0.7591,2511.7,2510.6,0.7783]
[1746962713355,0.7591,2511.7,2510.8,0.7783]
[1746962713560,0.2103843,2511.6,2510.9,2.593]
[1746962713725,0.2103843,2511.6,2510.9,2.63281831]
[1746962713926,0.2103843,2511.6,2511.0,0.34111183]
[1746962714151,0.2103843,2511.6,2511.1,0.03981832]
[1746962714365,0.2103843,2511.6,2511.0,0.34111183]
[1746962714857,0.2103843,2511.6,2511.1,0.03981832]
[1746962722243,0.2103843,2511.6,2511.0,0.34111183]
[1746962722442,0.2103843,2511.6,2510.9,2.593]
[1746962724276,0.2103843,2511.6,2511.0,2.593]
[1746962724777,0.7619,2511.5,2510.6,2.593]
[1746962724960,0.19748511,2511.4,2510.6,2.593]
[1746962725343,0.19748511,2511.4,2510.7,0.81462307]
[1746962725577,0.19748511,2511.4,2510.8,0.34076231]
[1746962726979,0.19748511,2511.4,2510.9,0.03982054]
[1746962727678,0.19748511,2511.4,2510.8,0.34076231]
[1746962727983,0.19748511,2511.4,2510.9,0.03982055]
[1746962729886,0.19748511,2511.4,2511.0,2.589]
[1746962730752,0.19748511,2511.4,2511.0,3.68197623]
[1746962732594,0.19748511,2511.4,2511.1,0.03981904]
[1746962732777,0.19748511,2511.4,2511.1,0.85591904]
[1746962733138,3.3541,2511.7,2511.1,0.8161]
[1746962733358,0.18137311,2511.3,2511.1,0.8161]
[1746962733594,3.3541,2511.7,2511.2,0.44980762]
[1746962734289,0.7661,2511.6,2511.0,2.589]
[1746962735487,3.3531,2511.6,2511.0,2.589]
[1746962736901,3.3531,2511.6,2511.0,3.4051]
[1746962737388,3.3531,2511.6,2511.1,0.03982063]
[1746962738389,0.7661,2511.6,2511.1,0.03982063]
[1746962739059,0.7661,2511.6,2511.0,3.4051]
[1746962739283,0.7661,2511.6,2511.1,0.34051]
[1746962743923,0.7661,2511.6,2511.2,0.03981756]
[1746962744930,0.7661,2511.6,2511.1,0.34051]
[1746962745120,0.7661,2511.6,2511.0,2.589]
[1746962745806,0.18123782,2511.5,2511.0,2.589]
[1746962746311,0.7661,2511.4,2511.0,2.589]
[1746962747628,0.18123782,2511.3,2511.0,2.589]
[1746962750422,0.18123782,2511.3,2511.1,0.03982025]
[1746962750631,0.8038,2511.6,2511.1,0.37889228]
[1746962750834,0.18100115,2511.5,2511.1,0.37889228]
[1746962751513,0.18100115,2511.5,2511.1,8.37889228]
[1746962752832,0.18100115,2511.5,2511.1,8.33907203]
[1746962753641,0.18100115,2511.5,2511.1,0.33907203]
[1746962754103,0.7543,2511.4,2511.0,2.589]
[1746962754620,0.18100115,2511.3,2511.0,2.589]
[1746962754806,0.7543,2511.4,2511.0,2.589]
[1746962755005,0.18100115,2511.3,2511.0,2.589]
[1746962755208,0.7543,2511.4,2511.0,2.589]
[1746962755412,0.18100115,2511.3,2511.0,2.589]
[1746962755659,0.18100115,2511.3,2510.5,0.7526]
[1746962755838,0.18100115,2511.3,2511.0,2.589]
[1746962760458,0.8313,2511.2,2510.5,0.7526]
[1746962760672,0.8313,2511.2,2510.3,14.327]
[1746962760833,0.8313,2511.1,2510.3,14.327]
[1746962761027,0.18008823,2511.0,2510.3,14.327]
[1746962761256,0.8313,2510.9,2510.3,14.327]
[1746962761629,0.17341734,2510.8,2510.3,14.327]
[1746962761830,0.8313,2510.7,2510.3,14.327]
[1746962762045,0.17270664,2510.6,2510.3,14.327]
[1746962770302,0.7582,2510.5,2509.4,0.7732]
[1746962770584,0.7582,2510.5,2509.6,2.585]
[1746962770794,0.7582,2510.3,2509.6,2.585]
[1746962771103,2.583,2510.7,2509.6,2.585]
[1746962771399,2.88275756,2510.7,2509.6,2.585]
[1746962771695,0.1558691,2510.6,2509.6,2.585]
[1746962772000,0.45973177,2510.6,2509.6,2.585]
[1746962776203,18.50973177,2510.6,2509.6,2.585]
[1746962776409,0.55,2510.5,2509.6,2.585]
[1746962776603,0.153834,2510.4,2509.6,2.585]
[1746962779636,0.55,2510.1,2508.6,1.6655]
[1746962779833,8.55,2509.9,2508.6,1.6655]
[1746962780140,0.55,2509.7,2508.6,1.6655]
[1746962780725,0.15308756,2509.6,2508.6,1.6655]
[1746962781798,0.55,2509.3,2508.6,1.6655]
[1746962782002,0.55,2509.0,2508.6,1.6655]
[1746962782203,0.15308756,2508.9,2508.6,1.6655]
[1746962783333,0.55,2508.8,2508.6,1.6655]
[1746962783723,0.55,2509.0,2508.6,1.6655]
[1746962783903,8.0,2509.1,2508.6,1.6655]
[1746962783904,0.70308756,2508.7,2508.6,1.6655]
[1746962784103,15.218,2508.7,2508.6,1.6655]
[1746962784340,15.92108756,2508.7,2508.6,1.6655]
[1746962784497,0.55,2508.6,2506.1,14.335]
[1746962784831,8.55,2508.4,2505.0,14.54599314]
[1746962785031,8.55,2508.2,2505.3,2.586]
[1746962785233,8.55,2508.0,2505.3,2.586]
[1746962785405,8.55,2507.8,2505.0,14.53220993]
[1746962785606,8.55,2507.6,2505.1,13.168]
[1746962785935,0.55,2507.4,2505.0,14.53220993]
[1746962786130,0.55,2507.4,2505.2,2.586]
[1746962786535,0.14205248,2507.3,2505.3,8.0]
[1746962787416,0.55,2507.2,2505.2,2.586]
[1746962787617,8.0,2507.0,2505.3,0.2586]
[1746962787816,5.31205248,2506.9,2505.3,8.2586]
[1746962788004,5.31205248,2506.9,2505.4,0.03990111]
[1746962788203,5.31205248,2506.9,2505.3,8.2586]
[1746962788439,1.33120525,2506.8,2505.4,1.08446]
[1746962788738,9.33120525,2506.8,2505.4,1.08446]
[1746962788934,0.14205248,2506.7,2505.2,2.586]
[1746962789139,5.30805248,2506.7,2505.3,8.0]
[1746962790221,0.43617129,2506.7,2505.3,8.0]
[1746962790420,2.584,2506.6,2505.4,0.03990443]
[1746962790727,0.1291727,2506.5,2505.3,8.0]
[1746962791040,0.42990185,2506.5,2505.4,1.0586]
[1746962791242,2.7131727,2506.5,2505.5,0.03990379]
[1746962791742,0.1291727,2506.5,2505.6,0.55]
[1746962791942,0.1291727,2506.5,2505.6,8.55]
[1746962792238,0.29411881,2506.7,2505.4,1.0586]
[1746962792405,0.11257744,2506.4,2505.7,8.0]
[1746962792602,2.584,2506.5,2505.4,1.0586]
[1746962792838,0.26965774,2506.4,2505.6,8.0]
[1746962793022,0.11261152,2506.4,2505.6,8.0]
[1746962793325,2.584,2506.7,2505.6,8.0]
[1746962793520,0.11261152,2506.3,2505.7,0.03989967]
[1746962793735,0.30353994,2506.7,2505.7,0.03989967]
[1746962794043,0.11261152,2506.2,2505.8,0.55]
[1746962794223,2.584,2507.1,2506.0,0.55]
[1746962794539,0.10415735,2507.0,2506.2,8.0]
[1746962794742,0.10415735,2507.0,2506.3,0.03989253]
[1746962795138,0.10415735,2507.0,2506.2,8.0]
[1746962798941,0.10415735,2507.0,2506.1,2.584]
[1746962799140,8.10415735,2507.0,2506.1,2.584]
[1746962799323,1.09850298,2506.9,2506.1,2.584]
[1746962799833,0.10487372,2506.8,2506.1,2.584]
[1746962801850,0.29687244,2507.1,2506.2,0.0398954]
[1746962802145,2.584,2506.8,2506.1,2.584]
[1746962802531,0.10504427,2506.7,2506.1,2.584]
[1746962802841,0.3739487,2506.7,2506.1,2.584]
[1746962805138,0.8157,2506.6,2506.1,2.584]
[1746962805459,0.8157,2506.6,2506.1,2.62389711]
[1746962805861,0.10504427,2506.5,2506.1,2.62389711]
[1746962806261,0.10504427,2506.5,2506.1,2.584]
[1746962806554,0.10504427,2506.5,2506.2,0.03989694]
[1746962807156,0.10504427,2506.5,2506.1,2.584]
[1746962807459,0.10504427,2506.5,2506.2,0.03989694]
[1746962807654,1.08460443,2506.7,2506.2,0.03989694]
[1746962808025,0.10569244,2506.6,2506.2,0.03989694]
[1746962808961,0.10569244,2506.6,2506.1,2.584]
[1746962809863,0.10569244,2506.6,2506.2,0.03989695]
[1746962810863,0.10569244,2506.6,2506.2,0.03989693]
[1746962811164,0.10569244,2506.6,2506.1,2.584]
[1746962811365,0.8157,2506.5,2506.1,2.584]
[1746962811661,0.92079155,2506.5,2506.1,2.584]
[1746962812959,1.27127071,2506.5,2506.1,2.584]
[1746962814266,0.8157,2506.4,2505.2,0.8295]
[1746962814465,0.8157,2506.2,2505.2,0.8295]
[1746962814667,0.8157,2506.0,2505.2,0.8295]
[1746962814831,0.8157,2506.0,2505.3,0.38135691]
[1746962815036,0.09560756,2505.9,2505.4,0.55]
[1746962815258,0.8157,2506.3,2505.6,0.8295]
[1746962815450,0.09560756,2506.2,2505.7,2.62490122]
[1746962816967,0.09560756,2506.2,2505.8,8.0]
[1746962817265,0.09560756,2506.2,2505.9,1.93188745]
[1746962817458,0.8157,2506.5,2505.9,1.93188745]
[1746962817639,0.09560756,2506.1,2505.9,1.93188745]
[1746962817842,0.8157,2506.5,2505.9,1.93188745]
[1746962818038,0.09560756,2506.0,2505.9,1.93188745]
[1746962818236,0.8157,2506.5,2505.9,1.93188745]
[1746962818768,0.09560756,2506.4,2505.9,1.93188745]
[1746962818969,0.09560756,2506.4,2506.0,0.52658426]
[1746962819169,0.8157,2507.6,2506.3,0.55]
[1746962819470,0.8157,2507.9,2506.9,0.8295]
[1746962819633,0.8157,2507.9,2507.0,2.62387738]
[1746962819634,0.08764026,2507.8,2507.0,2.62387738]
[1746962819833,0.08764026,2507.8,2507.1,8.34533774]
[1746962820063,0.8157,2508.1,2507.3,0.8295]
[1746962820258,0.08764026,2508.0,2507.4,0.03987325]
[1746962820966,0.09098569,2507.9,2507.5,0.55]
[1746962821264,0.09098569,2507.9,2507.7,8.0]
[1746962821471,0.8157,2508.4,2507.7,8.0]
[1746962821657,0.8157,2508.8,2507.7,11.9635]
[1746962821857,0.09003151,2508.7,2508.2,0.55]
[1746962822079,0.09003151,2508.7,2508.4,8.55]
[1746962822261,0.29624746,2509.3,2508.4,8.0]
[1746962822461,0.8157,2509.2,2508.4,8.0]
[1746962822662,3.49573151,2509.2,2508.1,0.8295]
[1746962822864,0.7595,2509.0,2508.2,2.584]
[1746962823376,0.09003151,2508.9,2508.2,2.584]
[1746962824976,0.09003151,2508.9,2508.4,0.7586]
[1746962826079,0.7595,2509.3,2508.4,0.7586]
[1746962826258,0.09003151,2508.8,2508.4,0.7586]
[1746962826454,0.7595,2509.3,2508.4,1.47575238]
[1746962826854,0.7595,2509.3,2508.0,1.3086]
[1746962827063,0.09003151,2509.2,2508.2,8.0]
[1746962827579,0.7595,2509.3,2508.2,8.0]
[1746962827779,0.09003151,2509.1,2508.2,8.0]
[1746962827981,0.7595,2509.3,2508.4,0.55]
[1746962828357,0.09003151,2509.2,2508.4,1.405]
[1746962828681,0.7595,2509.3,2508.5,0.03985364]
[1746962828863,0.7595,2509.3,2508.5,0.83075364]
[1746962829184,0.09003151,2509.2,2508.5,0.83075364]
[1746962829381,0.7595,2509.3,2508.5,0.83075364]
[1746962829686,0.7908,2509.9,2508.8,0.55]
[1746962829884,0.7908,2509.9,2508.9,2.583]
[1746962830055,0.7908,2509.9,2509.1,0.55]
[1746962830255,0.7908,2510.2,2509.3,0.55]
[1746962830456,0.7908,2510.2,2509.4,0.03983793]
[1746962830657,1.13088,2510.2,2509.6,8.0]
[1746962831586,1.13088,2510.2,2509.7,2.582]
[1746962835180,1.13088,2510.2,2509.8,0.03983792]
[1746962835788,0.09716101,2510.1,2509.7,2.582]
[1746962835988,1.13088,2510.2,2509.7,2.582]
[1746962836193,0.7908,2510.2,2509.7,2.582]
[1746962838888,10.05,2510.9,2509.8,0.03983793]
[1746962839193,8.0,2511.1,2509.8,0.85303793]
[1746962839194,3.44496101,2510.8,2509.8,0.85303793]
[1746962839385,0.84796101,2510.8,2509.8,8.85303793]
[1746962839596,3.44496101,2510.8,2509.8,8.8132]
[1746962839897,3.78945711,2510.8,2509.9,0.51049902]
[1746962840688,4.09161421,2510.8,2509.9,0.51049902]
[1746962840901,0.84796101,2510.8,2510.0,0.03983063]
[1746962841108,0.84796101,2510.8,2509.9,0.51049902]
[1746962841109,0.84796101,2510.8,2510.1,0.55]
[1746962841601,0.84796101,2510.8,2510.0,0.55]
[1746962843911,0.09716101,2510.8,2510.1,0.8132]
[1746962844075,13.3938,2511.1,2510.1,0.8132]
[1746962844278,0.09716101,2511.0,2510.1,0.8132]
[1746962845110,0.38961349,2511.0,2510.1,0.8132]
[1746962847000,0.09716101,2511.0,2510.1,0.8132]
[1746962849301,0.40025734,2511.0,2510.1,0.8132]
[1746962849800,0.40025734,2511.0,2510.2,0.58982812]
[1746962849999,0.09716101,2511.0,2510.5,0.8254]
[1746962850308,3.3556,2511.3,2510.6,0.89482071]
[1746962850485,0.10936744,2511.2,2510.6,0.89482071]
[1746962851790,0.30154398,2511.4,2510.6,0.89482071]
[1746962852000,0.110287,2511.1,2510.6,0.855]
[1746962852215,0.7696,2511.3,2510.6,0.855]
[1746962852383,0.110287,2511.0,2510.6,0.855]
[1746962852582,0.7696,2511.3,2510.6,0.855]
[1746962852815,0.110287,2510.9,2510.6,0.89482452]
[1746962853013,0.7696,2511.3,2510.7,0.7924]
[1746962853309,10.8169,2511.6,2510.8,0.03982225]
[1746962853527,10.8169,2511.6,2510.9,2.587]
[1746962853528,13.4009,2511.6,2510.9,2.587]
[1746962853825,13.4009,2511.6,2511.0,0.30250196]
[1746962853989,13.4009,2511.6,2510.7,0.7924]
[1746962854188,0.7669,2511.5,2510.8,2.587]
[1746962854389,1.06932994,2511.5,2510.8,2.587]
[1746962856125,0.7669,2511.4,2510.8,2.587]
[1746962860731,2.583,2511.3,2510.8,2.587]
[1746962860929,0.814,2511.1,2510.4,2.587]
[1746962865498,0.10761481,2511.0,2510.4,2.587]
[1746962866333,0.10761481,2511.0,2510.5,0.03982926]
[1746962866539,0.10761481,2511.0,2510.6,0.8093]
[1746962866752,0.814,2511.4,2510.6,0.8093]
[1746962866905,0.814,2511.4,2510.6,1.14893]
[1746962867237,0.1073763,2511.3,2510.6,1.14893]
[1746962868838,0.1073763,2511.3,2510.7,0.03982021]
[1746962870739,0.7826,2511.9,2511.0,0.55]
[1746962870941,0.10012453,2511.8,2511.3,0.7556]
[1746962871244,10.05,2512.7,2511.4,0.91536735]
[1746962871245,0.7826,2512.4,2511.4,0.91536735]
[1746962871544,0.10152243,2512.3,2511.5,0.7556]
[1746962871731,0.10152243,2512.3,2511.6,0.03980593]
[1746962871911,0.10152243,2512.3,2511.7,2.587]
[1746962872113,0.10152243,2512.3,2511.8,0.33226526]
[1746962872734,0.10152243,2512.3,2511.8,0.29245932]
[1746962875350,0.10152243,2512.3,2511.7,2.587]
[1746962875719,0.8242,2512.2,2511.7,2.587]
[1746962875932,0.10623987,2512.1,2511.7,2.587]
[1746962879937,0.10623987,2512.1,2511.8,0.03980783]
[1746962881046,0.10623987,2512.1,2511.7,2.587]
[1746962881252,0.8199,2512.4,2511.8,0.34008]
[1746962881456,0.10390026,2512.0,2511.8,0.34008]
[1746962881673,0.8199,2512.4,2511.8,0.34008]
[1746962882273,0.09572273,2512.3,2511.9,0.03980293]
[1746962882634,0.8199,2512.6,2512.0,0.8079]
[1746962883143,0.09570284,2512.5,2512.0,0.8079]
[1746962883473,0.8199,2512.6,2511.9,0.55]
[1746962883643,0.8199,2512.6,2512.0,0.969798]